bitfinex/quotes_SOLUSD_20230110
["timestamp","ask_amount","ask_price","bid_price","bid_amount"]
[1673329411497,20.0,16.096,16.083,20.0]
[1673329411711,20.0,16.096,16.082,46.65]
[1673329412021,39.00061681,16.096,16.082,46.65]
[1673329412231,39.00061681,16.096,16.081,46.65]
[1673329413370,17.0,16.095,16.081,46.65]
[1673329413580,20.0,16.093,16.078,46.66]
[1673329413789,20.0,16.093,16.079,20.0]
[1673329414014,20.0,16.091,16.079,20.0]
[1673329414213,46.62,16.092,16.079,20.0]
[1673329414424,39.00061681,16.093,16.077,20.0]
[1673329414759,39.00061681,16.093,16.079,20.0]
[1673329416116,19.00061681,16.093,16.079,20.0]
[1673329416439,26.27,16.09,16.08,94.02104717]
[1673329416629,20.0,16.088,16.08,94.02104717]
[1673329416835,46.64,16.087,16.064,20.0]
[1673329417175,20.0,16.086,16.065,129.47673263]
[1673329417483,46.64,16.085,16.066,20.0]
[1673329417803,46.64,16.085,16.068,20.0]
[1673329418007,66.64,16.086,16.069,46.69]
[1673329418223,66.64,16.086,16.07,20.0]
[1673329418457,66.64,16.086,16.071,46.68]
[1673329418954,118.2353,16.101,16.08,131.47]
[1673329419150,118.2353,16.101,16.082,20.0]
[1673329419361,118.2353,16.101,16.083,46.65]
[1673329419567,118.2353,16.101,16.084,20.0]
[1673329419901,20.0,16.1,16.085,82.24458641]
[1673329420118,20.0,16.1,16.086,20.0]
[1673329420312,20.0,16.1,16.087,46.64]
[1673329420519,20.0,16.1,16.088,20.0]
[1673329420852,20.0,16.1,16.089,46.63]
[1673329421056,118.2353,16.101,16.09,20.0]
[1673329421371,118.2353,16.101,16.091,46.63]
[1673329425375,20.0,16.1,16.091,46.63]
[1673329425790,20.0,16.1,16.092,17.0]
[1673329426016,118.2353,16.101,16.093,46.62]
[1673329426435,118.2353,16.101,16.092,46.62]
[1673329426842,118.2353,16.101,16.091,46.63]
[1673329429059,20.0,16.1,16.091,46.63]
[1673329429895,118.2353,16.101,16.091,46.63]
[1673329430958,20.0,16.1,16.091,46.63]
[1673329431480,118.2353,16.101,16.091,46.63]
[1673329432324,20.0,16.1,16.091,46.63]
[1673329433271,118.2353,16.101,16.091,46.63]
[1673329433517,118.2353,16.101,16.092,20.0]
[1673329433691,118.2353,16.101,16.093,46.62]
[1673329434000,46.62,16.093,16.072,11.48677]
[1673329434196,131.08,16.09,16.066,112.7427]
[1673329434409,131.08,16.09,16.067,20.0]
[1673329434410,20.0,16.088,16.067,20.0]
[1673329434622,63.64,16.087,16.068,46.69]
[1673329434824,20.0,16.086,16.068,46.69]
[1673329435039,63.64,16.085,16.061,66.71]
[1673329435244,20.0,16.079,16.061,66.71]
[1673329435477,46.66,16.078,16.061,66.71]
[1673329436300,20.0,16.077,16.061,66.71]
[1673329436721,46.67,16.076,16.061,66.71]
[1673329437054,20.0,16.077,16.061,66.71]
[1673329437900,20.0,16.077,16.061,46.71]
[1673329438107,20.0,16.075,16.061,46.71]
[1673329441583,46.67,16.076,16.061,46.71]
[1673329441780,20.0,16.075,16.061,46.71]
[1673329444318,139.7342018,16.074,16.058,5.6071]
[1673329444513,265.9351018,16.074,16.059,20.0]
[1673329444725,19.00061681,16.073,16.059,20.0]
[1673329444941,66.68,16.072,16.059,20.0]
[1673329445268,66.68,16.072,16.06,26.28]
[1673329445269,46.68,16.072,16.06,26.28]
[1673329445463,109.2009,16.074,16.061,20.0]
[1673329445666,20.0,16.073,16.06,73.0]
[1673329446087,109.2009,16.074,16.061,20.0]
[1673329446524,109.2009,16.074,16.06,46.72]
[1673329446722,20.0,16.073,16.059,66.72]
[1673329447367,85.68061681,16.073,16.059,20.0]
[1673329447897,17.0,16.072,16.059,20.0]
[1673329448208,39.00061681,16.071,16.059,20.0]
[1673329448409,17.0,16.07,16.059,20.0]
[1673329448653,20.0,16.069,16.059,20.0]
[1673329449262,66.69,16.069,16.059,20.0]
[1673329449492,39.00061681,16.069,16.059,20.0]
[1673329450628,39.00061681,16.069,16.058,5.6071]
[1673329450840,63.69,16.068,16.058,5.6071]
[1673329451054,20.0,16.067,16.058,5.6071]
[1673329451260,46.7,16.066,16.058,5.6071]
[1673329451699,20.0,16.069,16.058,5.6071]
[1673329453680,114.5904,16.07,16.059,46.72]
[1673329453885,114.5904,16.07,16.06,20.0]
[1673329454118,20.0,16.073,16.06,20.0]
[1673329456741,20.0,16.073,16.061,46.71]
[1673329457779,20.0,16.073,16.06,20.0]
[1673329458196,20.0,16.073,16.061,46.71]
[1673329459576,109.2009,16.074,16.061,20.0]
[1673329459806,109.2009,16.074,16.062,46.71]
[1673329460209,20.0,16.073,16.06,20.0]
[1673329460430,20.0,16.073,16.06,40.0]
[1673329460855,20.0,16.073,16.061,46.71]
[1673329461060,109.2009,16.074,16.061,46.71]
[1673329461276,109.2009,16.074,16.062,20.0]
[1673329461688,109.2009,16.074,16.063,46.71]
[1673329463894,109.2009,16.074,16.062,66.71]
[1673329464534,157.4331,16.077,16.062,66.71]
[1673329464749,110.7631,16.077,16.062,77.89946463]
[1673329465596,20.0,16.076,16.062,77.89946463]
[1673329466642,110.7631,16.077,16.062,77.89946463]
[1673329470399,110.7631,16.077,16.062,57.89946463]
[1673329470631,20.0,16.076,16.062,46.71]
[1673329470829,20.0,16.076,16.062,20.0]
[1673329472840,110.7631,16.077,16.063,11.18946463]
[1673329473052,110.7631,16.077,16.065,20.0]
[1673329473365,110.7631,16.077,16.066,46.7]
[1673329473768,110.7631,16.077,16.065,20.0]
[1673329474625,110.7631,16.077,16.064,46.7]
[1673329474818,20.0,16.076,16.063,46.71]
[1673329475360,73.23,16.08,16.064,20.0]
[1673329475568,19.00061681,16.082,16.065,66.7]
[1673329475569,46.65,16.082,16.065,66.7]
[1673329475782,46.65,16.082,16.066,20.0]
[1673329475996,20.0,16.081,16.067,46.69]
[1673329476208,20.0,16.081,16.068,20.0]
[1673329477254,46.65,16.082,16.069,20.0]
[1673329477570,20.0,16.082,16.069,20.0]
[1673329477764,20.0,16.082,16.07,20.0]
[1673329479252,66.65,16.082,16.068,20.0]
[1673329481456,66.65,16.082,16.069,20.0]
[1673329481672,66.65,16.082,16.07,20.0]
[1673329483021,66.65,16.082,16.068,20.0]
[1673329485766,20.0,16.079,16.062,46.71]
[1673329485960,20.0,16.077,16.062,20.0]
[1673329489250,46.66,16.078,16.063,11.18946463]
[1673329489563,46.66,16.079,16.064,20.0]
[1673329489881,20.0,16.078,16.064,20.0]
[1673329492397,46.66,16.079,16.064,20.0]
[1673329492592,46.21,16.08,16.064,20.0]
[1673329492593,72.87,16.08,16.065,46.7]
[1673329492802,40.0,16.079,16.066,20.0]
[1673329493016,46.66,16.078,16.065,46.7]
[1673329493225,20.0,16.077,16.064,20.0]
[1673329493769,20.0,16.078,16.064,20.0]
[1673329494932,46.67,16.077,16.064,20.0]
[1673329495455,66.66,16.078,16.064,20.0]
[1673329500184,66.66,16.078,16.063,46.71]
[1673329500397,66.66,16.078,16.064,20.0]
[1673329502917,20.0,16.078,16.064,20.0]
[1673329503551,20.0,16.078,16.063,46.71]
[1673329503754,20.0,16.078,16.064,20.0]
[1673329504390,20.0,16.078,16.063,46.71]
[1673329506071,20.0,16.078,16.064,20.0]
[1673329506388,20.0,16.078,16.065,63.7]
[1673329506579,20.0,16.078,16.065,17.0]
[1673329506790,20.0,16.078,16.063,46.71]
[1673329507016,20.0,16.078,16.066,17.0]
[1673329507231,20.0,16.078,16.064,20.0]
[1673329507435,46.67,16.077,16.058,5.6071]
[1673329507635,37.0,16.076,16.059,20.0]
[1673329507844,20.0,16.074,16.059,20.0]
[1673329508068,63.68,16.073,16.059,20.0]
[1673329508384,20.0,16.072,16.059,20.0]
[1673329508607,46.68,16.071,16.059,20.0]
[1673329509416,46.68,16.071,16.058,5.6071]
[1673329509632,102.21061681,16.07,16.058,5.6071]
[1673329509953,20.0,16.068,16.058,5.6071]
[1673329516362,39.00061681,16.068,16.058,5.6071]
[1673329516777,20.0,16.066,16.058,5.6071]
[1673329516982,115.3745,16.065,16.058,5.6071]
[1673329517194,20.0,16.064,16.058,5.6071]
[1673329556318,65.69061681,16.068,16.058,5.6071]
[1673329556532,46.68,16.073,16.06,20.0]
[1673329556930,66.68,16.073,16.06,20.0]
[1673329557145,20.0,16.073,16.06,20.0]
[1673329558127,66.68,16.073,16.059,11.18946463]
[1673329558314,66.68,16.073,16.06,37.0]
[1673329559180,66.68,16.073,16.061,20.0]
[1673329560638,66.68,16.073,16.06,37.0]
[1673329560846,26.44,16.07,16.058,5.6071]
[1673329561057,86.69,16.069,16.058,5.6071]
[1673329561379,20.0,16.067,16.058,5.6071]
[1673329581479,19.93827172,16.067,16.058,5.6071]
[1673329586204,66.62827172,16.067,16.058,5.6071]
[1673329586521,66.62827172,16.067,16.058,5.53120358]
[1673329592519,56.62827172,16.067,16.058,5.53120358]
[1673329596003,20.0,16.065,16.058,5.53120358]
[1673329596505,20.0,16.063,16.058,5.53120358]
[1673329598184,118.6545,16.065,16.058,5.53120358]
[1673329598507,20.0,16.064,16.058,5.53120358]
[1673329604924,20.0,16.062,16.058,5.53120358]
[1673329606082,20.0,16.062,16.051,111.6434]
[1673329606280,20.0,16.062,16.05,20.0]
[1673329610683,17.0,16.063,16.05,20.0]
[1673329610900,165.3545,16.065,16.052,20.0]
[1673329610901,118.6545,16.065,16.052,20.0]
[1673329611226,20.0,16.069,16.053,57.92946463]
[1673329611417,20.0,16.069,16.055,20.0]
[1673329611628,20.0,16.069,16.057,20.0]
[1673329611856,20.0,16.069,16.058,63.72]
[1673329612174,20.0,16.069,16.059,20.0]
[1673329613014,20.0,16.07,16.06,20.0]
[1673329613230,108.0633,16.071,16.061,0.74696447]
[1673329613412,108.0633,16.071,16.061,17.0]
[1673329613619,20.0,16.072,16.061,17.0]
[1673329613834,20.0,16.072,16.062,0.85203609]
[1673329614883,20.0,16.072,16.061,17.0]
[1673329615847,20.0,16.07,16.057,46.72]
[1673329616162,20.0,16.07,16.058,17.0]
[1673329616586,20.0,16.07,16.059,20.0]
[1673329616899,20.0,16.07,16.06,17.0]
[1673329619320,20.0,16.07,16.059,17.0]
[1673329619972,20.0,16.07,16.057,66.72]
[1673329620184,20.0,16.07,16.058,37.0]
[1673329621646,20.0,16.069,16.058,37.0]
[1673329624684,20.0,16.069,16.058,17.0]
[1673329626589,20.0,16.069,16.058,37.0]
[1673329626799,117.5941,16.074,16.059,78.39087357]
[1673329627005,20.0,16.073,16.06,20.62082844]
[1673329627225,20.0,16.073,16.061,63.71]
[1673329632510,117.5941,16.074,16.061,63.71]
[1673329632809,117.5941,16.074,16.062,20.0]
[1673329633032,20.0,16.073,16.062,20.0]
[1673329634507,117.5941,16.074,16.062,20.0]
[1673329635044,20.0,16.073,16.062,20.0]
[1673329635346,117.5941,16.074,16.062,31.67087357]
[1673329635545,46.65,16.081,16.063,47.47846702]
[1673329635756,20.0,16.079,16.064,20.0]
[1673329635971,20.0,16.079,16.066,1.17779664]
[1673329636933,20.0,16.079,16.066,18.17779664]
[1673329637751,66.66,16.079,16.066,18.17779664]
[1673329637965,66.66,16.079,16.064,46.7]
[1673329638202,66.66,16.079,16.065,0.87051972]
[1673329638400,66.66,16.079,16.064,46.7]
[1673329639667,66.66,16.079,16.065,20.0]
[1673329639971,66.66,16.079,16.064,46.7]
[1673329640182,66.66,16.079,16.063,46.71]
[1673329640498,66.66,16.079,16.064,17.0]
[1673329640701,66.66,16.079,16.065,46.7]
[1673329640902,66.66,16.079,16.064,20.0]
[1673329641111,66.66,16.079,16.065,17.0]
[1673329641863,46.66,16.079,16.065,17.0]
[1673329642076,19.00061681,16.088,16.065,17.0]
[1673329642077,118.136,16.091,16.07,132.1]
[1673329642398,20.0,16.09,16.072,20.0]
[1673329642589,20.0,16.089,16.073,63.68]
[1673329642808,20.0,16.089,16.074,20.0]
[1673329643006,20.0,16.089,16.075,63.67]
[1673329643336,20.0,16.089,16.076,20.0]
[1673329644039,20.0,16.089,16.077,17.0]
[1673329647631,20.0,16.089,16.077,63.67]
[1673329648558,118.136,16.091,16.078,20.0]
[1673329648773,118.136,16.091,16.079,46.66]
[1673329648982,118.136,16.091,16.08,20.0]
[1673329649400,118.136,16.091,16.081,37.0]
[1673329649812,118.136,16.091,16.08,20.0]
[1673329650027,118.136,16.091,16.08,66.66]
[1673329650982,118.136,16.091,16.081,20.0]
[1673329651335,118.136,16.091,16.082,17.0]
[1673329651495,111.7057,16.092,16.082,17.0]
[1673329652024,111.7057,16.092,16.082,63.65]
[1673329652350,111.7057,16.092,16.083,20.0]
[1673329652771,111.7057,16.092,16.084,17.0]
[1673329653298,20.0,16.097,16.084,17.0]
[1673329653626,118.1479,16.098,16.085,66.64]
[1673329654137,118.1479,16.098,16.085,20.0]
[1673329654662,118.1479,16.098,16.086,63.64]
[1673329655090,20.0,16.097,16.086,63.64]
[1673329655508,118.1479,16.098,16.087,20.0]
[1673329656137,118.1479,16.098,16.088,17.0]
[1673329656796,46.6,16.1,16.088,17.0]
[1673329656970,117.6063,16.101,16.089,20.0]
[1673329657185,117.6063,16.101,16.089,66.63]
[1673329657394,117.6063,16.101,16.09,37.0]
[1673329658568,117.6063,16.101,16.09,17.0]
[1673329658891,20.0,16.1,16.089,40.0]
[1673329660579,117.6063,16.101,16.089,40.0]
[1673329660987,117.6063,16.101,16.091,20.0]
[1673329661315,117.6063,16.101,16.092,63.62]
[1673329661522,117.6063,16.101,16.093,20.0]
[1673329662880,108.8364,16.103,16.093,20.0]
[1673329663945,108.8364,16.103,16.094,17.0]
[1673329666484,46.58,16.107,16.094,17.0]
[1673329666834,20.0,16.108,16.095,20.0]
[1673329667425,46.57,16.109,16.096,46.61]
[1673329667630,117.7764,16.11,16.097,40.0]
[1673329667854,117.7764,16.11,16.098,46.6]
[1673329668058,117.7764,16.11,16.1,20.0]
[1673329668269,117.7764,16.11,16.101,17.0]
[1673329672244,117.7764,16.11,16.102,20.0]
[1673329672867,117.7764,16.11,16.103,17.0]
[1673329674777,20.0,16.109,16.097,86.61]
[1673329676972,20.0,16.109,16.097,40.0]
[1673329682772,117.7764,16.11,16.098,46.6]
[1673329683089,117.7764,16.11,16.1,20.0]
[1673329683287,117.7764,16.11,16.101,17.0]
[1673329686347,20.0,16.109,16.101,17.0]
[1673329686772,117.7764,16.11,16.099,20.0]
[1673329686983,117.7764,16.11,16.1,20.0]
[1673329687175,117.7764,16.11,16.101,17.0]
[1673329688441,117.7764,16.11,16.1,46.6]
[1673329688770,20.0,16.109,16.1,46.6]
[1673329690320,117.7764,16.11,16.1,46.6]
[1673329690645,117.7764,16.11,16.101,20.0]
[1673329691289,117.7764,16.11,16.1,46.6]
[1673329691600,117.7764,16.11,16.101,17.0]
[1673329692010,117.7764,16.11,16.099,20.0]
[1673329692424,20.0,16.109,16.1,17.0]
[1673329692765,117.7764,16.11,16.1,17.0]
[1673329692957,117.7764,16.11,16.101,20.0]
[1673329693696,117.7764,16.11,16.102,17.0]
[1673329694105,117.7764,16.11,16.1,20.0]
[1673329694652,20.0,16.109,16.099,40.0]
[1673329695382,117.7764,16.11,16.1,20.0]
[1673329695578,114.0037392,16.114,16.101,46.6]
[1673329696009,5.6071392,16.114,16.102,20.0]
[1673329696227,5.6071392,16.114,16.103,46.59]
[1673329696542,5.6071392,16.114,16.104,20.0]
[1673329696732,5.6071392,16.114,16.105,46.58]
[1673329696939,5.6071392,16.114,16.106,20.0]
[1673329697147,5.6071392,16.114,16.107,66.58]
[1673329697589,5.6071392,16.114,16.108,20.0]
[1673329697788,5.6071392,16.114,16.109,20.0]
[1673329700322,5.6071392,16.114,16.11,17.0]
[1673329700640,5.6071392,16.114,16.111,20.0]
[1673329701578,5.6071392,16.114,16.109,20.0]
[1673329702403,5.6071392,16.114,16.104,20.0]
[1673329703146,5.6071392,16.114,16.104,66.59]
[1673329704410,5.6071392,16.114,16.106,20.0]
[1673329706824,5.6071392,16.114,16.107,17.0]
[1673329709050,5.6071392,16.114,16.107,63.58]
[1673329709247,5.6071392,16.114,16.109,20.0]
[1673329709453,5.6071392,16.114,16.11,37.0]
[1673329709659,5.6071392,16.114,16.104,20.0]
[1673329709893,5.6071392,16.114,16.105,17.0]
[1673329714076,5.6071392,16.114,16.106,20.0]
[1673329714406,5.6071392,16.114,16.107,17.0]
[1673329715460,5.6071392,16.114,16.108,17.0]
[1673329718401,5.1071392,16.114,16.105,46.58]
[1673329718610,5.1071392,16.114,16.103,46.59]
[1673329718825,5.1071392,16.114,16.102,46.59]
[1673329719020,5.1071392,16.114,16.103,20.0]
[1673329719441,5.1071392,16.114,16.105,20.0]
[1673329719876,5.1071392,16.114,16.104,46.59]
[1673329720196,5.1071392,16.114,16.102,46.59]
[1673329720505,5.1071392,16.114,16.102,20.0]
[1673329720715,5.1071392,16.114,16.101,46.6]
[1673329720913,17.0,16.113,16.099,46.6]
[1673329721241,20.0,16.111,16.1,20.0]
[1673329721773,20.0,16.111,16.099,66.6]
[1673329722080,20.0,16.109,16.099,66.6]
[1673329722485,109.9092,16.11,16.1,20.0]
[1673329722928,109.9092,16.11,16.101,17.0]
[1673329724698,109.9092,16.11,16.102,20.0]
[1673329724903,109.9092,16.11,16.103,17.0]
[1673329725961,66.55,16.116,16.104,20.0]
[1673329726173,20.0,16.116,16.104,20.0]
[1673329726384,46.56,16.115,16.099,86.6]
[1673329726702,20.0,16.113,16.099,86.6]
[1673329727321,20.0,16.113,16.1,20.0]
[1673329727965,20.0,16.113,16.101,17.0]
[1673329728158,20.0,16.113,16.101,63.6]
[1673329728362,20.0,16.113,16.101,17.0]
[1673329733937,5.1071392,16.114,16.101,17.0]
[1673329734152,5.1071392,16.114,16.103,20.0]
[1673329734376,5.1071392,16.114,16.104,17.0]
[1673329734696,5.1071392,16.114,16.105,46.58]
[1673329734907,5.1071392,16.114,16.106,17.0]
[1673329735429,5.1071392,16.114,16.105,17.0]
[1673329735753,5.1071392,16.114,16.106,20.0]
[1673329735935,5.1071392,16.114,16.107,17.0]
[1673329736695,20.0,16.118,16.107,17.0]
[1673329736696,119.0668392,16.137,16.108,98.25087357]
[1673329737008,5.6071392,16.137,16.12,132.1]
[1673329737319,20.0,16.136,16.122,20.0]
[1673329737633,123.8963392,16.137,16.124,20.0]
[1673329737851,123.8963392,16.137,16.125,63.53]
[1673329738666,123.8963392,16.137,16.125,46.53]
[1673329738879,20.0,16.136,16.123,46.53]
[1673329739100,20.0,16.136,16.122,46.54]
[1673329739304,20.0,16.136,16.121,46.54]
[1673329740474,20.0,16.136,16.122,17.0]
[1673329740681,20.0,16.136,16.123,46.53]
[1673329740901,131.98,16.13,16.116,2.09154129]
[1673329741086,66.52,16.129,16.092,106.1701]
[1673329741420,26.42,16.12,16.1,26.42]
[1673329741646,179.2794,16.119,16.101,66.6]
[1673329741830,20.0,16.118,16.102,20.0]
[1673329742039,20.0,16.118,16.103,46.59]
[1673329742264,20.0,16.116,16.102,46.59]
[1673329742797,20.0,16.116,16.101,46.6]
[1673329743200,39.00061681,16.116,16.095,46.61]
[1673329743409,39.00061681,16.116,16.096,20.0]
[1673329743632,63.56,16.115,16.097,46.61]
[1673329743844,20.0,16.114,16.097,46.61]
[1673329744057,46.56,16.113,16.097,46.61]
[1673329744454,46.56,16.113,16.099,20.0]
[1673329744662,46.56,16.113,16.1,20.0]
[1673329745292,46.56,16.113,16.101,17.0]
[1673329745839,46.56,16.113,16.102,17.0]
[1673329746250,46.56,16.113,16.1,20.0]
[1673329746459,46.56,16.113,16.101,17.0]
[1673329746666,20.0,16.114,16.101,17.0]
[1673329746883,46.56,16.115,16.101,17.0]
[1673329747636,20.0,16.115,16.102,20.0]
[1673329747946,46.55,16.116,16.103,17.0]
[1673329748145,20.0,16.115,16.103,17.0]
[1673329748572,46.55,16.116,16.103,17.0]
[1673329748976,20.0,16.115,16.103,17.0]
[1673329749409,46.55,16.116,16.103,17.0]
[1673329750034,46.55,16.116,16.103,20.0]
[1673329750362,20.0,16.115,16.104,17.0]
[1673329751835,20.0,16.115,16.101,46.6]
[1673329752026,20.0,16.115,16.1,20.0]
[1673329752236,63.56,16.114,16.1,20.0]
[1673329752451,20.0,16.113,16.1,40.0]
[1673329752660,20.0,16.113,16.1,20.0]
[1673329752875,46.56,16.114,16.1,40.0]
[1673329753090,46.56,16.114,16.1,66.6]
[1673329753317,39.00061681,16.115,16.101,17.0]
[1673329753715,46.56,16.114,16.101,17.0]
[1673329753927,20.0,16.113,16.101,17.0]
[1673329754770,39.00061681,16.113,16.1,46.6]
[1673329754979,39.00061681,16.113,16.098,20.0]
[1673329754980,46.56,16.112,16.098,20.0]
[1673329755189,20.0,16.111,16.098,20.0]
[1673329756139,46.56,16.112,16.098,20.0]
[1673329756344,46.56,16.112,16.099,37.0]
[1673329756552,65.56061681,16.114,16.1,20.0]
[1673329756769,20.0,16.113,16.101,17.0]
[1673329757920,20.0,16.113,16.1,20.0]
[1673329758125,17.0,16.112,16.098,20.0]
[1673329758338,20.0,16.111,16.099,17.0]
[1673329758766,20.0,16.111,16.1,20.0]
[1673329760139,20.0,16.111,16.101,17.0]
[1673329760755,20.0,16.111,16.099,46.6]
[1673329760964,20.0,16.111,16.1,20.0]
[1673329762132,197.66,16.11,16.094,46.62]
[1673329762353,20.0,16.109,16.084,180.1245]
[1673329762656,20.0,16.109,16.085,20.0]
[1673329762657,20.0,16.107,16.085,20.0]
[1673329762849,20.0,16.107,16.086,46.64]
[1673329762850,63.58,16.106,16.086,46.64]
[1673329763270,20.0,16.104,16.086,46.64]
[1673329763494,63.59,16.103,16.086,46.64]
[1673329763695,20.0,16.102,16.086,46.64]
[1673329763907,20.0,16.102,16.087,17.0]
[1673329764139,20.0,16.102,16.088,46.63]
[1673329764350,20.0,16.102,16.089,17.0]
[1673329765306,20.0,16.102,16.088,63.63]
[1673329765734,46.59,16.103,16.088,63.63]
[1673329766152,46.59,16.103,16.089,40.0]
[1673329766469,46.59,16.103,16.09,17.0]
[1673329767201,20.0,16.102,16.089,20.0]
[1673329767928,20.0,16.102,16.087,20.0]
[1673329768129,17.0,16.101,16.088,46.63]
[1673329768339,17.0,16.101,16.089,20.0]
[1673329768561,17.0,16.101,16.087,20.0]
[1673329768562,20.0,16.102,16.088,20.0]
[1673329768885,20.0,16.102,16.089,66.63]
[1673329769095,20.0,16.102,16.089,20.0]
[1673329771854,20.0,16.102,16.09,17.0]
[1673329776184,66.59,16.104,16.09,17.0]
[1673329776396,113.3852,16.105,16.09,63.63]
[1673329776713,20.0,16.104,16.091,20.0]
[1673329777049,20.0,16.104,16.092,17.0]
[1673329777224,66.59,16.104,16.092,17.0]
[1673329777434,66.59,16.104,16.09,46.63]
[1673329777852,66.59,16.104,16.091,17.0]
[1673329779340,66.59,16.104,16.089,66.63]
[1673329779662,66.59,16.104,16.09,17.0]
[1673329779970,20.0,16.104,16.091,20.0]
[1673329780367,20.0,16.104,16.092,17.0]
[1673329780694,20.0,16.104,16.09,20.0]
[1673329780888,20.0,16.104,16.091,17.0]
[1673329782935,20.0,16.104,16.092,17.0]
[1673329783252,20.0,16.104,16.089,66.63]
[1673329783663,20.0,16.104,16.09,17.0]
[1673329783874,20.0,16.104,16.09,37.0]
[1673329784079,66.59,16.104,16.09,37.0]
[1673329784914,66.59,16.104,16.09,17.0]
[1673329785982,66.59,16.104,16.09,37.0]
[1673329786486,20.0,16.104,16.09,37.0]
[1673329787434,66.59,16.104,16.09,37.0]
[1673329787640,66.59,16.104,16.09,17.0]
[1673329789443,66.59,16.104,16.09,37.0]
[1673329790394,66.59,16.104,16.09,17.0]
[1673329791754,66.59,16.104,16.09,37.0]
[1673329792505,66.59,16.104,16.091,20.0]
[1673329792714,46.59,16.104,16.092,17.0]
[1673329793326,66.59,16.104,16.092,17.0]
[1673329794301,20.0,16.103,16.092,17.0]
[1673329794817,20.0,16.103,16.091,17.0]
[1673329797844,46.59,16.104,16.092,20.0]
[1673329798057,113.3852,16.105,16.093,17.0]
[1673329798379,20.0,16.104,16.093,17.0]
[1673329798782,46.59,16.103,16.093,17.0]
[1673329799948,20.0,16.104,16.09,20.0]
[1673329800162,66.59,16.104,16.09,20.0]
[1673329801430,66.59,16.104,16.091,17.0]
[1673329802791,46.59,16.104,16.091,17.0]
[1673329802983,113.3852,16.105,16.091,63.63]
[1673329803405,113.3852,16.105,16.092,20.0]
[1673329803836,113.3852,16.105,16.094,20.0]
[1673329804164,26.37,16.13,16.101,3.00004226]
[1673329804369,109.8445,16.127,16.11,26.11]
[1673329804575,46.52,16.126,16.111,3.00004226]